fUSD/lending_fUSD_20250506
["ID","MTS","AMOUNT","RATE_DAILY","PERIOD"]
[360139218,1746563492114,-707.98840801,0.00044411,10]
[360139219,1746563492124,-1000.0,0.00044411,10]
[360139220,1746563492133,-499.99999722,0.00044411,7]
[360139221,1746563492143,-375.14066219,0.00044411,2]
[360139222,1746563492152,-391.63772041,0.00044411,2]
[360139223,1746563492162,-202245.00781138,0.00044411,2]
[360139224,1746563492171,-15630.04647891,0.00044411,2]
[360139225,1746563492180,-170.90439602,0.00044411,2]
[360139226,1746563492189,-230.4787011,0.00044411,2]
[360139227,1746563492199,-1592.26362682,0.00044411,2]
[360139228,1746563492208,-549.72468293,0.00044411,2]
[360139229,1746563492217,-100208.66,0.00044411,2]
[360139230,1746563492227,-150.0,0.00044411,2]
[360139231,1746563492236,-6695.42922641,0.00044411,2]
[360139232,1746563492245,-50000.0,0.00044411,2]
[360139233,1746563492256,-279.66829499,0.00044411,2]
[360139234,1746563492266,-154.89201086,0.00044411,2]
[360139235,1746563492275,-4868.59727797,0.00044411,10]
[360139236,1746563492285,-2367.65963867,0.00044411,3]
[360139237,1746563492295,-229.64100635,0.00044411,3]
[360139238,1746563492305,-13644.96,0.00044411,2]
[360139239,1746563492315,-875.38759102,0.00044411,2]
[360139240,1746563492325,-3388.81720527,0.00044411,20]
[360139241,1746563492335,-50166.04303986,0.00044411,2]
[360139242,1746563492344,-4453.49929069,0.00044411,20]
[360139243,1746563492353,-40803.40875065,0.00044411,7]
[360139244,1746563492363,-7780.68072825,0.00044411,2]
[360139245,1746563492372,-703.0,0.00044411,7]
[360139246,1746563492381,-243.89612619,0.00044411,2]
[360139247,1746563492391,-150.0,0.00044411,2]
[360139248,1746563492400,-150.0,0.00044411,2]
[360139249,1746563492409,-500.0,0.00044411,2]
[360139250,1746563492419,-183.95187544,0.00044411,2]
[360139251,1746563492429,-298.27202684,0.00044411,7]
[360139252,1746563492439,-4282.35142242,0.00044411,20]
[360139253,1746563492569,-2862.79583411,0.00044411,2]
[360139254,1746563492579,-160.0,0.00044411,2]
[360139255,1746563492588,-1731.54292968,0.00044411,2]
[360139256,1746563492599,-500.0,0.00044411,120]
[360139257,1746563492609,-500.0,0.00044411,120]
[360139258,1746563492619,-391.41322811,0.00044411,120]
[360139259,1746563492629,-278.0,0.00044411,31]
[360139260,1746563492639,-3000.0,0.00044411,30]
[360139261,1746563492649,-3000.0,0.00044411,30]
[360139262,1746563492659,-1306.0,0.00044411,30]
[360139263,1746563492668,-1958.0,0.00044411,120]
[360139264,1746563492678,-3000.0,0.00044411,30]
[360139265,1746563492688,-3000.0,0.00044411,30]
[360139266,1746563492697,-3000.0,0.00044411,30]
[360139267,1746563492706,-3000.0,0.00044411,30]
[360139268,1746563492716,-3000.0,0.00044411,30]
[360139269,1746563492726,-3000.0,0.00044411,30]
[360139270,1746563492736,-3000.0,0.00044411,30]
[360139271,1746563492746,-3000.0,0.00044411,30]
[360139272,1746563492756,-3000.0,0.00044411,30]
[360139273,1746563492766,-2351.8492952,0.00044411,60]
[360139274,1746563492775,-3000.0,0.00044411,30]
[360139275,1746563492785,-1000.0,0.00044411,30]
[360139276,1746563492795,-518.21665552,0.00044411,30]
[360139277,1746563492805,-789.63,0.00044411,120]
[360139278,1746563492815,-789.63,0.00044411,120]
[360139279,1746563492825,-789.63,0.00044411,120]
[360139280,1746563492835,-789.63,0.00044411,120]
[360139281,1746563492844,-789.63,0.00044411,120]
[360139282,1746563492854,-789.63,0.00044411,120]
[360139283,1746563492864,-789.63,0.00044411,120]
[360139284,1746563492874,-789.63,0.00044411,120]
[360139285,1746563492884,-789.63,0.00044411,120]
[360139286,1746563492893,-789.63,0.00044411,120]
[360139287,1746563492903,-789.63,0.00044411,120]
[360139288,1746563492913,-789.63,0.00044411,120]
[360139289,1746563492922,-789.63,0.00044411,120]
[360139290,1746563492932,-789.63,0.00044411,120]
[360139291,1746563492942,-789.63,0.00044411,120]
[360139292,1746563492956,-789.63,0.00044411,120]
[360139293,1746563492965,-789.63,0.00044411,120]
[360139294,1746563492975,-789.63,0.00044411,120]
[360139295,1746563492985,-789.63,0.00044411,120]
[360139296,1746563492995,-789.63,0.00044411,120]
[360139297,1746563493006,-789.63,0.00044411,120]
[360139298,1746563493016,-789.63,0.00044411,120]
[360139299,1746563493029,-789.63,0.00044411,120]
[360139300,1746563493039,-789.77937646,0.00044411,120]
[360139301,1746563493049,-500.0,0.00044411,120]
[360139302,1746563493059,-250.4217888,0.00044411,120]
[360139303,1746563493069,-160.0,0.00044411,30]
[360139304,1746563493080,-202.9,0.00044411,30]
[360139305,1746563493089,-3159.87,0.00044411,120]
[360139306,1746563493099,-3159.87,0.00044411,120]
[360139307,1746563493109,-3159.87,0.00044411,120]
[360139308,1746563493119,-3159.87,0.00044411,120]
[360139309,1746563493128,-3159.87,0.00044411,120]
[360139310,1746563493138,-3159.87,0.00044411,120]
[360139311,1746563493148,-3159.87,0.00044411,120]
[360139312,1746563493158,-3159.87,0.00044411,120]
[360139313,1746563493168,-3159.87,0.00044411,120]
[360139314,1746563493177,-3159.87,0.00044411,120]
[360139315,1746563493187,-3159.87,0.00044411,120]
[360139316,1746563493196,-3159.87,0.00044411,120]
[360139317,1746563493206,-3159.87,0.00044411,120]
[360139318,1746563493217,-3159.87,0.00044411,120]
[360139319,1746563493227,-3159.87,0.00044411,120]
[360139320,1746563493237,-3159.87,0.00044411,120]
[360139321,1746563493247,-3159.87,0.00044411,120]
[360139322,1746563493257,-3159.87,0.00044411,120]
[360139323,1746563493266,-3159.87,0.00044411,120]
[360139324,1746563493276,-3159.87,0.00044411,120]
[360139325,1746563493285,-3159.87,0.00044411,120]
[360139326,1746563493295,-3159.87,0.00044411,120]
[360139327,1746563493304,-3159.87,0.00044411,120]
[360139328,1746563493314,-3159.92082699,0.00044411,120]
[360139329,1746563493324,-1074.0,0.00044411,30]
[360139330,1746563493335,-1074.0,0.00044411,30]
[360139331,1746563493345,-1074.0,0.00044411,30]
[360139332,1746563493354,-1074.0,0.00044411,30]
[360139333,1746563493364,-1071.0,0.00044411,30]
[360139334,1746563493373,-265612.29,0.00044411,60]
[360139335,1746563493383,-1025.97665451,0.00044411,30]
[360139336,1746563493392,-1000.0,0.00044411,30]
[360139337,1746563493402,-625.82,0.00044411,120]
[360139338,1746563493412,-625.82,0.00044411,120]
[360139339,1746563493421,-625.82,0.00044411,120]
[360139340,1746563493431,-625.82,0.00044411,120]
[360139341,1746563493441,-625.82,0.00044411,120]
[360139342,1746563493451,-625.82,0.00044411,120]
[360139343,1746563493461,-625.82,0.00044411,120]
[360139344,1746563493470,-625.82,0.00044411,120]
[360139345,1746563493480,-625.82,0.00044411,120]
[360139346,1746563493490,-625.82,0.00044411,120]
[360139347,1746563493500,-5000.0,0.00044411,120]
[360139348,1746563493510,-625.82,0.00044411,120]
[360139349,1746563493520,-625.82,0.00044411,120]
[360139350,1746563493529,-625.82,0.00044411,120]
[360139351,1746563493539,-625.82,0.00044411,120]
[360139352,1746563493549,-625.82,0.00044411,120]
[360139353,1746563493558,-625.82,0.00044411,120]
[360139354,1746563493568,-625.82,0.00044411,120]
[360139355,1746563493577,-625.82,0.00044411,120]
[360139356,1746563493586,-625.82,0.00044411,120]
[360139357,1746563493596,-625.82,0.00044411,120]
[360139358,1746563493606,-625.82,0.00044411,120]
[360139359,1746563493616,-625.82,0.00044411,120]
[360139360,1746563493625,-625.82,0.00044411,120]
[360139361,1746563493634,-626.02,0.00044411,120]
[360139362,1746563493645,-332.81167211,0.00044411,120]
[360139363,1746563493656,-5504.42729118,0.00044411,30]
[360139364,1746563493667,-6083.2885527,0.00044411,120]
[360139365,1746563493678,-377.68251343,0.00044411,30]
[360139366,1746563493689,-238.85137102,0.00044411,30]
[360139367,1746563493700,-5990.02449201,0.00044411,30]
[360139368,1746563493710,-840.95808046,0.00044411,120]
[360139369,1746563493721,-267.23222717,0.00044411,120]
[360139370,1746563493731,-280.31054746,0.00044411,120]
[360139371,1746563493741,-7294.04444146,0.00044411,30]
[360139372,1746563493751,-1274.22262033,0.00044411,30]
[360139373,1746563493761,-6338.85780767,0.00044411,30]
[360139374,1746563493771,-42223.0396933,0.00044411,10]
[360139375,1746563493781,-1675.27213797,0.00044411,120]
[360139376,1746563493791,-162.68413892,0.00044411,120]
[360139377,1746563493801,-8562.7123812,0.00044411,30]
[360139378,1746563493811,-1487.30345999,0.00044411,120]
[360139379,1746563493821,-10479.99694857,0.00044411,120]
[360139380,1746563493831,-726.4733324,0.00044411,90]
[360139381,1746563493840,-1035.3943765,0.00044411,120]
[360139382,1746563493850,-715.61115757,0.00044411,120]
[360139383,1746563493860,-1110.12817557,0.00044411,120]
[360139384,1746563493869,-291.96875164,0.00044411,60]
[360139385,1746563493879,-215.21238075,0.00044411,30]
[360139386,1746563493888,-260.34144267,0.00044411,120]
[360139387,1746563493898,-1225.93208682,0.00044411,120]
[360139388,1746563493907,-255.86579084,0.00044411,120]
[360139389,1746563493918,-220.68463101,0.00044411,120]
[360139390,1746563493927,-266.61745818,0.00044411,60]
[360139391,1746563493937,-7999.999999,0.00044411,7]
[360139392,1746563493947,-291.68748345,0.00044411,120]
[360139393,1746563493959,-691.41476169,0.00044411,120]
[360139394,1746563493969,-242.63550898,0.00044411,30]
[360139395,1746563493978,-468.44074417,0.00044411,120]
[360139396,1746563493988,-159.0,0.00044411,30]
[360139397,1746563493998,-1162.31514165,0.00044411,120]
[360139398,1746563494008,-4195.73977589,0.00044411,30]
[360139399,1746563494018,-685.26590043,0.00044411,120]
[360139400,1746563494028,-778.1968055,0.00044411,120]
[360139401,1746563494038,-168.83661564,0.00044411,120]
[360139402,1746563494047,-1022.09297205,0.00044411,120]
[360139403,1746563494057,-154.16914946,0.00044411,30]
[360139404,1746563494067,-449.999999,0.00044411,2]
[360139405,1746563494077,-200.65007516,0.00044411,30]
[360139406,1746563494087,-538.2323018,0.00044411,30]
[360139407,1746563494096,-3534.52645729,0.00044411,30]
[360139408,1746563494107,-1168.15956638,0.00044411,120]
[360139409,1746563494116,-866.04722123,0.00044411,30]
[360139410,1746563494126,-40550.50542848,0.00044411,120]
[360139411,1746563494135,-152.0185633,0.00044411,60]
[360139412,1746563494145,-225.9505437,0.00044411,30]
[360139413,1746563494155,-226.97172857,0.00044411,30]
[360139414,1746563494166,-4973.06928915,0.00044411,30]
[360139415,1746563494175,-7120.17103359,0.00044411,120]
[360139416,1746563494185,-186.70255939,0.00044411,60]
[360139417,1746563494195,-1324.68513867,0.00044411,120]
[360139418,1746563494204,-435.72049176,0.00044411,120]
[360139419,1746563494214,-4796.77998009,0.00044411,120]
[360139420,1746563494224,-6491.61635689,0.00044411,30]
[360139421,1746563494234,-6808.77846069,0.00044411,30]
[360139422,1746563494243,-2428.14277753,0.00044411,120]
[360139423,1746563494254,-5126.55530868,0.00044411,120]
[360139424,1746563494263,-173.3090356,0.00044411,120]
[360139425,1746563494272,-1942.88573647,0.00044411,120]
[360139426,1746563494282,-174.02338542,0.00044411,30]
[360139427,1746563494291,-1629.25530308,0.00044411,30]
[360139428,1746563494300,-2387.21684458,0.00044411,120]
[360139429,1746563494309,-202934.41323797,0.00044411,60]
[360139430,1746563494319,-385.21449357,0.00044411,120]
[360139431,1746563494328,-233.43915928,0.00044411,120]
[360139432,1746563494339,-618.34034847,0.00044411,120]
[360139433,1746563494348,-593.69065685,0.00044411,30]
[360139434,1746563494358,-3870.54118621,0.00044411,120]
[360139435,1746563494368,-390.05955166,0.00044411,120]
[360139436,1746563494378,-1299.88426471,0.00044411,120]
[360139437,1746563494387,-7069.93388159,0.00044411,30]
[360139438,1746563494397,-3184.20462051,0.00044411,30]
[360139439,1746563494407,-4135.27816982,0.00044411,30]
[360139440,1746563494416,-2775.49364952,0.00044411,120]
[360139441,1746563494426,-1024.15852805,0.00044411,120]
[360139442,1746563494436,-7511.78911454,0.00044411,120]
[360139443,1746563494445,-973.36023862,0.00044411,60]
[360139444,1746563494455,-301.16727964,0.00044411,120]
[360139445,1746563494464,-8204.68370232,0.00044411,30]
[360139446,1746563494474,-177.79736767,0.00044411,120]
[360139447,1746563494484,-1097.55614119,0.00044411,120]
[360139448,1746563494494,-4094.10795753,0.00044411,30]
[360139449,1746563494504,-484.03927814,0.00044411,120]
[360139450,1746563494514,-499.99487548,0.00044411,2]
[360139451,1746563494523,-1091.68542074,0.00044411,120]
[360139452,1746563494532,-899.999999,0.00044411,2]
[360139453,1746563494542,-188.09573874,0.00044411,30]
[360139454,1746563494551,-737.2744031,0.00044411,30]
[360139455,1746563494560,-350.0,0.00044411,120]
[360139456,1746563494569,-179.48823576,0.00044411,120]
[360139457,1746563494688,-539.60445096,0.00044411,30]
[360139458,1746563494698,-2175.1611947,0.00044411,30]
[360139459,1746563494706,-1000.0,0.00044411,3]
[360139460,1746563494716,-12953.50277869,0.00044411,2]
[360139461,1746563494896,-380.18472871,0.00044411,2]
[360139462,1746563494932,700.0,0.00030136,120]
[360139463,1746563494954,-500.0,0.00020357,2]
[360139464,1746563494963,-17773.47796438,0.00044411,2]
[360139465,1746563494973,-150.0,0.00044412,30]
[360139466,1746563494983,-150.0,0.00044412,2]
[360139467,1746563494993,-150.0,0.00044419,30]
[360139468,1746563495003,-2160.02203483,0.0004444,30]
[360139469,1746563495015,-33183.78218419,0.0004444,30]
[360139470,1746563495026,-81807.08818965,0.0004444,30]
[360139471,1746563495038,-459.95,0.0004444,30]
[360139472,1746563495071,700.0,0.00030136,120]
[360139473,1746563495109,700.0,0.00030136,120]
[360139474,1746563495153,700.0,0.00030136,120]
[360139475,1746563495233,795.57763696,0.00030136,120]
[360139476,1746563495302,-293.71801786,0.0001955,2]
[360139477,1746563498822,-1107.58158214,0.0001955,2]
[360139478,1746563498831,-450.0,0.00019984,2]
[360139479,1746563498840,-878.0,0.00019997,2]
[360139480,1746563498849,-450.0,0.00019998,2]
[360139481,1746563498859,-450.0,0.00019998,2]
[360139482,1746563498869,-562.44,0.00019999,2]
[360139483,1746563498878,-500.0,0.00020357,2]
[360139484,1746563498887,-500.0,0.00020357,2]
[360139485,1746563498896,-500.0,0.00020357,2]
[360139486,1746563498906,-500.0,0.00020357,2]
[360139487,1746563498915,-500.0,0.00020357,2]
[360139488,1746563498924,-500.0,0.00020357,2]
[360139489,1746563498933,-500.0,0.00020357,2]
[360139490,1746563498942,-500.0,0.00020357,2]
[360139491,1746563498957,-500.0,0.00020357,2]
[360139492,1746563498966,-826.97841786,0.0004444,30]
[360139493,1746563498977,-2198.0,0.0004444,30]
[360139494,1746563498988,-17673.42265415,0.0004444,30]
[360139495,1746563499000,-762.38125443,0.0004444,30]
[360139496,1746563499011,-1885.51248912,0.0004444,30]
[360139497,1746563499023,-6695.58338477,0.0004444,30]
[360139498,1746563499034,-452017.68515504,0.0004444,30]
[360139499,1746563499044,-264.2101847,0.0004444,30]
[360139500,1746563499055,-8064.46457219,0.0004444,30]
[360139501,1746563662430,1403.04,0.00025006,120]
[360139502,1746563662628,1403.04,0.00028132,120]
[360139503,1746563674599,178.4,0.00018844,2]
[360139504,1746563878720,1000.0,0.00018844,2]
[360139505,1746563890406,1000.0,0.0003,30]
[360139506,1746564006488,1000.0,0.0003,30]
[360139508,1746564353817,286.15,0.00030137,120]
[360139509,1746564555522,250.0,0.00017,2]
[360139510,1746564556605,300.0,0.00019,2]
[360139514,1746564632046,-200.0,0.00019739,2]
[360139515,1746564632056,-215.0,0.00019766,2]
[360139516,1746564632155,-35.0,0.00019766,2]
[360139517,1746564632165,-300.0,0.00019798,2]
[360139518,1746564632174,-0.49662498,0.00019798,2]
[360139519,1746564632186,-1199.50337502,0.00019798,2]
[360139520,1746564632195,-300.0,0.00019798,2]
[360139521,1746564632205,-330.77538995,0.00019799,2]
[360139522,1746564632214,-450.0,0.00019799,2]
[360139523,1746564632224,-450.0,0.00019799,2]
[360139524,1746564632235,-450.0,0.00019799,2]
[360139525,1746564632245,-450.0,0.00019799,2]
[360139526,1746564632255,-339.18302142,0.00019799,2]
[360139527,1746564632265,-167.91492079,0.00019799,2]
[360139528,1746564632278,-322.08507921,0.00019799,2]
[360139529,1746564632287,-450.0,0.00019799,2]
[360139530,1746564632296,-450.0,0.00019799,2]
[360139531,1746564632306,-450.0,0.00019799,2]
[360139532,1746564632315,-450.0,0.00019799,2]
[360139533,1746564632324,-178.04704092,0.00019799,2]
[360139535,1746564632333,-490.0,0.00019799,2]
[360139537,1746564632343,-450.0,0.00019799,2]
[360139539,1746564632353,-450.0,0.00019799,2]
[360139541,1746564632362,-450.0,0.00019799,2]
[360139543,1746564632372,-490.0,0.00019799,2]
[360139545,1746564632381,-301.55924443,0.00019799,2]
[360139547,1746564632390,-450.0,0.00019799,2]
[360139549,1746564632399,-450.0,0.00019799,2]
[360139552,1746564632409,-539.02451514,0.00019799,2]
[360139555,1746564632418,-1.68745362,0.00019799,2]
[360139560,1746564632430,-448.31254638,0.00019799,2]
[360139563,1746564632439,-8.09703566,0.00019799,2]
[360139566,1746564632450,-441.90296434,0.00019799,2]
[360139569,1746564632459,-255.09703566,0.00019799,2]
[360139653,1746564637927,-450.0,0.00019799,2]
[360139654,1746564637936,-450.0,0.00019799,2]
[360139655,1746564637945,-450.0,0.00019799,2]
[360139656,1746564637955,-499.65,0.00019799,2]
[360139657,1746564637963,-450.0,0.00019799,2]
[360139658,1746564637973,-450.0,0.00019799,2]
[360139659,1746564637982,-168.68725075,0.00019799,2]
[360139660,1746564638883,-281.31274925,0.00019799,2]
[360139661,1746564638892,-211.26599681,0.00019799,2]
[360139664,1746564638915,-238.73400319,0.00019799,2]
[360139666,1746564638925,-261.61267392,0.00019799,2]
[360139675,1746564640241,-188.38732608,0.00019799,2]
[360139676,1746564640251,-450.0,0.00019799,2]
[360139677,1746564640260,-450.0,0.00019799,2]
[360139678,1746564640270,-47.57834923,0.00019799,2]
[360139679,1746564640347,-402.42165077,0.00019799,2]
[360139680,1746564640357,-450.0,0.00019799,2]
[360139681,1746564640366,-470.0,0.00019799,2]
[360139682,1746564640375,-450.0,0.00019799,2]
[360139683,1746564640385,-450.0,0.00019799,2]
[360139684,1746564640395,-450.0,0.00019799,2]
[360139685,1746564640404,-229.88324052,0.00019799,2]
[360139686,1746564640414,-269.82267338,0.00019799,2]
[360139687,1746564640430,-180.17732662,0.00019799,2]
[360139688,1746564640441,-450.0,0.00019799,2]
[360139689,1746564640450,-450.0,0.00019799,2]
[360139690,1746564640458,-509.96,0.00019799,2]
[360139691,1746564640467,-450.0,0.00019799,2]
[360139692,1746564640479,-137.46267338,0.00019799,2]
[360139693,1746564640513,-312.53732662,0.00019799,2]
[360139694,1746564640523,-450.0,0.00019799,2]
[360139695,1746564640532,-450.0,0.00019799,2]
[360139696,1746564640542,-450.0,0.00019799,2]
[360139697,1746564640553,-450.0,0.00019799,2]
[360139698,1746564640563,-450.0,0.00019799,2]
[360139699,1746564640573,-450.0,0.00019799,2]
[360139700,1746564640583,-450.0,0.00019799,2]
[360139701,1746564640592,-450.0,0.00019799,2]
[360139702,1746564640601,-450.0,0.00019799,2]
[360139703,1746564640610,-1199.37503376,0.00019799,2]
[360139704,1746564640622,-205.90496624,0.00019799,2]
[360139705,1746564640631,-450.0,0.00019799,2]
[360139706,1746564640640,-266.29,0.00019799,2]
[360139707,1746564640649,-20.86035764,0.00019799,2]
[360139758,1746564643292,-429.13964236,0.00019799,2]
[360139759,1746564643302,-450.0,0.00019799,2]
[360139760,1746564643311,-68.83035764,0.00019799,2]
[360139799,1746564646079,-381.16964236,0.00019799,2]
[360139800,1746564646089,-450.0,0.00019799,2]
[360139801,1746564646098,-450.0,0.00019799,2]
[360139802,1746564646107,-500.0,0.00019799,2]
[360139803,1746564646116,-450.0,0.00019799,2]
[360139804,1746564646126,-450.0,0.00019799,2]
[360139805,1746564646135,-450.0,0.00019799,2]
[360139806,1746564646144,-250.0,0.000198,2]
[360139807,1746564646153,-500.0,0.00019873,2]
[360139808,1746564646163,-500.0,0.00019873,2]
[360139809,1746564646172,-247.3553352,0.0001989,2]
[360139810,1746564646181,-111.47502244,0.00019899,2]
[360139811,1746564646192,-82.58327863,0.00019899,2]
[360139812,1746564646202,-450.0,0.00019899,2]
[360139813,1746564646211,-510.0,0.00019899,2]
[360139814,1746564646220,-510.0,0.00019899,2]
[360139815,1746564646230,-510.0,0.00019899,2]
[360139816,1746564646240,-510.0,0.00019899,2]
[360139817,1746564646250,-450.0,0.00019899,2]
[360139818,1746564646259,-554.34779342,0.00019899,2]
[360139819,1746564646268,-510.0,0.00019899,2]
[360139820,1746564646277,-510.0,0.00019899,2]
[360139821,1746564646286,-510.0,0.00019899,2]
[360139822,1746564646295,-450.0,0.00019899,2]
[360139823,1746564646304,-450.0,0.00019899,2]
[360139824,1746564646313,-450.0,0.00019899,2]
[360139825,1746564646323,-450.0,0.00019899,2]
[360139826,1746564646332,-510.0,0.00019899,2]
[360139827,1746564646342,-510.0,0.00019899,2]
[360139828,1746564646351,-450.0,0.00019899,2]
[360139829,1746564646360,-450.0,0.00019899,2]
[360139830,1746564646369,-450.0,0.00019899,2]
[360139831,1746564646378,-450.0,0.00019899,2]
[360139833,1746564646387,-450.0,0.00019899,2]
[360139835,1746564646396,-450.0,0.00019899,2]
[360139837,1746564646405,-191.9,0.00019899,2]
[360139838,1746564646414,-450.0,0.00019899,2]
[360139839,1746564646423,-450.0,0.00019899,2]
[360139840,1746564646432,-450.0,0.00019899,2]
[360139841,1746564646441,-450.0,0.00019899,2]
[360139842,1746564646450,-450.0,0.00019899,2]
[360139843,1746564646459,-450.0,0.00019899,2]
[360139844,1746564646468,-450.0,0.00019899,2]
[360139845,1746564646476,-1405.28,0.00019899,2]
[360139846,1746564646490,-450.0,0.00019899,2]
[360139847,1746564646498,-425.46320009,0.00019899,2]
[360139848,1746564646510,-24.53679991,0.00019899,2]
[360139849,1746564646519,-184.33,0.00019899,2]
[360139850,1746564646528,-268.95820009,0.00019899,2]
[360139851,1746564646547,-181.04179991,0.00019899,2]
[360139853,1746564646556,-350.80819591,0.00019899,2]
[360139884,1746564663331,640.0,0.00025833,120]
[360139885,1746564663578,640.0,0.00028703,120]
[360139886,1746564900234,1000.0,0.00018844,2]
[360139887,1746565105009,958.47,0.0001717,2]
[360139888,1746565105245,958.47,0.00019434,2]
[360139889,1746565254544,174.0,0.000194,2]
[360139890,1746565417774,153.48,0.000298,31]
[360139891,1746565417826,153.48,0.000298,31]
[360139892,1746565536551,4012.72,0.00018961,2]
[360139893,1746565832132,-166.06,0.0001953,2]
[360139894,1746565832143,-154.87353656,0.00019565,2]
[360139895,1746565832191,-95.12646344,0.00019565,2]
[360139896,1746565832200,-174.0,0.000196,2]
[360139897,1746565832210,-1200.0,0.00019709,2]
[360139898,1746565832219,-96.38953971,0.00019709,2]
[360139899,1746565832249,-203.61046029,0.00019709,2]
[360139900,1746565832259,-632.81121136,0.00019709,2]
[360139901,1746565832268,-35632.06834719,0.0001971,2]
[360139902,1746565832280,-593.87089179,0.0001971,2]
[360139903,1746565832290,-30.919571,0.00019773,2]
[360139904,1746565832301,-469.080429,0.00019773,2]
[360139905,1746565832311,-500.0,0.00019773,2]
[360139906,1746565832321,-850.0,0.00019799,2]
[360139907,1746565832330,-944.27280509,0.000198,2]
[360139908,1746565832342,-49.96787233,0.000198,2]
[360139909,1746565832352,-165.88196989,0.000198,2]
[360139910,1746565832362,-268.39357785,0.000198,2]
[360139911,1746565832377,-565.04856978,0.000198,2]
[360139912,1746565832387,-160.09549363,0.000198,2]
[360139913,1746565832396,-174.0,0.000198,2]
[360139914,1746565832406,-351.50177615,0.00019844,2]
[360139915,1746565832416,-500.0,0.00019873,2]
[360139916,1746565832426,-162.04089107,0.00019873,2]
[360139917,1746565832435,-500.0,0.00019873,2]
[360139918,1746565832444,-500.0,0.00019873,2]
[360139919,1746565832453,-506.00716929,0.00019873,2]
[360139920,1746565832463,-500.0,0.00019873,2]
[360139921,1746565832472,-500.0,0.00019873,2]
[360139923,1746565832482,-500.0,0.00019873,2]
[360139925,1746565832491,-501.04190365,0.00019873,2]
[360139927,1746565832501,-994.24067743,0.00019889,2]
[360139929,1746565832510,-534.5893,0.0001989,2]
[360139930,1746565832519,-194.69768038,0.00019899,2]
[360139931,1746565832528,-37491.44273779,0.00019899,2]
[360139932,1746565832540,-668.59142846,0.00019899,2]
[360139942,1746565833679,841.82,0.00018946,2]
[360139943,1746565834364,841.82,0.0002605,120]
[360139944,1746565834602,841.82,0.00028418,120]
[360139953,1746565838162,-584.41120523,0.000198,2]
[360139954,1746565838173,-12744.04098224,0.00019899,2]
[360139955,1746565838187,-543.01459896,0.00019899,2]
[360139956,1746565838206,-27901.98402025,0.00019899,2]
[360139957,1746565838233,-4785.71253329,0.00019899,2]
[360139958,1746565838244,-4300.95149412,0.00019899,2]
[360139959,1746565838279,-2383.49999997,0.00019899,2]
[360139973,1746565838657,-4518.04037041,0.00019899,2]
[360139974,1746565840491,-373.50896794,0.00019899,2]
[360139975,1746565840530,-467636.17691011,0.00019899,2]
[360139976,1746565840540,-434.35172853,0.00019899,2]
[360139977,1746565840550,-570.88109282,0.00019899,2]
[360139978,1746565840559,-520.40495282,0.00019899,2]
[360139979,1746565840570,-194.16728,0.00019899,2]
[360139980,1746565840579,-450.0,0.00019899,2]
[360139981,1746565840588,-450.0,0.00019899,2]
[360139982,1746565840598,-576.75316058,0.00019899,2]
[360139983,1746565840606,-450.0,0.00019899,2]
[360139984,1746565840616,-450.0,0.00019899,2]
[360139985,1746565840625,-494.34596469,0.00019899,2]
[360139986,1746565840634,-450.0,0.00019899,2]
[360139987,1746565840643,-450.0,0.00019899,2]
[360139988,1746565840652,-450.0,0.00019899,2]
[360139989,1746565840663,-450.0,0.00019899,2]
[360139990,1746565840672,-470.0,0.00019899,2]
[360139991,1746565840681,-450.0,0.00019899,2]
[360139992,1746565840691,-450.0,0.00019899,2]
[360139993,1746565840700,-2313.38,0.00019899,2]